bitfinex/quotes_ETHUSD_20250130
["timestamp","ask_amount","ask_price","bid_price","bid_amount"]
[1738222988676,0.7901,3180.9,3180.4,3.14424]
[1738222991263,3.93389,3180.9,3180.3,3.0]
[1738222991688,3.93389,3180.9,3180.3,6.14433]
[1738222991855,3.93389,3180.9,3180.3,9.28861]
[1738222993088,0.7901,3180.9,3180.4,3.14422]
[1738222993254,0.7901,3180.9,3180.3,7.073141]
[1738222993588,0.7901,3180.9,3180.3,10.217411]
[1738222993795,0.7901,3180.9,3180.3,9.28855]
[1738222994290,3.14356,3181.2,3180.6,3.00629563]
[1738222994499,3.14356,3181.2,3180.7,3.14396]
[1738222994500,3.92346,3181.2,3180.7,3.14396]
[1738222995788,3.92346,3181.2,3180.6,6.15034563]
[1738222995994,3.92345,3181.2,3180.6,3.14405]
[1738222997398,3.14358,3181.1,3180.6,3.14405]
[1738222998392,3.14358,3181.1,3180.5,3.14414]
[1738223000402,3.14377,3180.9,3180.3,0.8149]
[1738223000587,3.14381,3180.9,3180.3,0.8149]
[1738223000793,3.91116,3180.8,3180.3,0.8149]
[1738223001563,3.91116,3180.8,3180.3,3.95925]
[1738223003291,3.91116,3180.8,3180.3,0.8149]
[1738223003496,3.91116,3180.8,3180.1,3.14452]
[1738223003806,3.91116,3180.8,3180.2,3.14444]
[1738223006111,3.14401,3180.7,3180.2,3.14444]
[1738223007205,3.91116,3180.8,3180.2,3.14444]
[1738223007615,7.0551,3180.8,3180.2,3.14444]
[1738223008410,3.14396,3180.7,3180.2,3.14444]
[1738223009209,3.91116,3180.8,3180.2,3.14444]
[1738223010790,7.05511,3180.8,3180.2,3.14444]
[1738223010992,3.91116,3180.8,3180.2,3.14444]
[1738223012081,7.05511,3180.8,3180.2,3.14444]
[1738223012415,3.91116,3180.8,3180.2,3.14444]
[1738223013319,3.14396,3180.7,3180.2,3.14444]
[1738223014621,3.14396,3180.7,3180.2,4.68712949]
[1738223016829,0.7673,3180.8,3180.2,1.54268949]
[1738223017117,3.14381,3180.9,3180.7,1.54268949]
[1738223017302,3.14381,3180.9,3180.5,2.36098949]
[1738223022499,6.28766,3180.9,3180.5,2.36098949]
[1738223022702,3.14381,3180.9,3180.5,2.36098949]
[1738223024142,6.28766,3180.9,3180.5,2.36098949]
[1738223024348,3.14381,3180.9,3180.5,2.36098949]
[1738223026343,3.14387,3180.8,3180.5,0.8183]
[1738223026545,3.14387,3180.8,3180.3,2.29488949]
[1738223027520,3.14387,3180.8,3180.3,5.29488949]
[1738223030154,3.14396,3180.7,3180.3,5.29488949]
[1738223030453,3.14381,3180.9,3180.3,8.43922949]
[1738223031145,3.14381,3180.9,3180.3,5.29488949]
[1738223031352,3.14389,3180.8,3180.3,5.43922949]
[1738223031714,3.14381,3180.9,3180.3,5.43922949]
[1738223032774,6.28766,3180.9,3180.3,5.43922949]
[1738223033218,3.14381,3180.9,3180.3,5.43922949]
[1738223035125,3.14388,3180.8,3180.3,5.43922949]
[1738223035322,3.14381,3180.9,3180.3,5.43922949]
[1738223037660,3.14386,3180.8,3180.3,5.43922949]
[1738223039941,14.14366,3181.0,3180.5,4.54268949]
[1738223041622,17.2874,3181.0,3180.5,4.54268949]
[1738223041823,14.14366,3181.0,3180.5,4.54268949]
[1738223042022,14.14366,3181.0,3180.5,4.68681949]
[1738223042256,11.0,3181.0,3180.6,3.8153]
[1738223044174,11.0,3181.0,3180.7,1.54268949]
[1738223047823,11.0,3181.0,3180.9,8.48954949]
[1738223060955,11.0,3181.0,3180.9,6.50302498]
[1738223063914,11.0,3181.0,3180.9,7.28192498]
[1738223064285,11.0,3181.0,3180.9,8.82461447]
[1738223069217,9.99023437,3181.0,3180.9,8.83961447]
[1738223069410,0.7808,3182.4,3182.2,3.14245]
[1738223069621,0.7808,3182.4,3182.3,1.54268949]
[1738223069913,3.14181,3182.9,3182.3,1.54268949]
[1738223069914,0.7808,3182.6,3182.3,1.54268949]
[1738223070318,0.7808,3182.6,3182.3,4.68504949]
[1738223070526,0.7808,3182.6,3182.5,1.54268949]
[1738223072025,0.7885,3183.0,3182.5,1.54268949]
[1738223072196,3.93019,3183.0,3182.5,1.54268949]
[1738223072396,0.7885,3183.0,3182.7,1.54268949]
[1738223073920,3.93021,3183.0,3182.7,1.54268949]
[1738223074122,3.93021,3183.0,3182.5,1.5405214]
[1738223075023,0.7885,3183.0,3182.5,1.5405214]
[1738223075204,0.7885,3183.0,3182.5,4.6826814]
[1738223075792,0.7885,3183.0,3182.7,3.14198]
[1738223076095,0.8168,3183.7,3183.0,3.14165]
[1738223076318,0.8168,3183.7,3183.2,4.6820114]
[1738223076523,0.8168,3183.7,3183.2,3.14149]
[1738223076834,3.9578,3183.7,3183.1,3.0]
[1738223077188,3.9578,3183.7,3183.1,6.14158]
[1738223077391,0.8168,3183.7,3183.1,6.14158]
[1738223078415,3.9578,3183.7,3183.1,6.14158]
[1738223079114,0.8168,3183.7,3183.1,6.14158]
[1738223079920,0.8168,3183.7,3183.1,3.0]
[1738223080238,0.8168,3183.7,3183.3,3.14137]
[1738223080822,0.8168,3183.7,3183.1,3.0]
[1738223081147,0.8168,3183.7,3183.1,6.14152]
[1738223081308,0.8168,3183.7,3183.1,3.0]
[1738223081510,0.8168,3183.7,3183.2,3.14148]
[1738223083141,3.14036,3184.4,3182.8,0.8685849]
[1738223083142,0.7949,3183.5,3182.8,3.14185]
[1738223083446,3.1415,3183.2,3182.6,3.14204]
[1738223083767,0.7949,3183.1,3182.6,3.14204]
[1738223083912,0.7949,3183.1,3182.7,6.14198]
[1738223085940,0.7949,3183.1,3182.7,3.0]
[1738223086309,0.7949,3183.1,3182.6,3.14204]
[1738223086511,0.7949,3183.1,3182.3,6.14489915]
[1738223086742,3.93652,3183.1,3182.5,3.14217]
[1738223087324,3.93652,3183.1,3182.6,3.14207]
[1738223089047,0.7949,3183.1,3182.6,3.14207]
[1738223089351,0.7949,3183.1,3182.7,3.14197]
[1738223094259,0.7949,3183.1,3182.8,3.14179]
[1738223096055,0.7949,3183.1,3182.7,3.14197]
[1738223096862,0.7949,3183.1,3182.7,6.28388]
[1738223098725,0.7949,3183.1,3182.7,3.14191]
[1738223099256,0.7949,3183.1,3182.8,3.1418]
[1738223103680,0.7949,3183.1,3182.6,7.68233496]
[1738223104256,0.7949,3183.1,3182.7,3.1419]
[1738223104673,0.7949,3183.1,3182.8,1.54033496]
[1738223105000,3.93869,3183.4,3182.9,3.14175]
[1738223110007,3.93869,3183.4,3182.8,1.54033496]
[1738223110811,0.7974,3183.4,3182.9,3.14178]
[1738223110972,0.8009,3183.7,3183.2,1.54033496]
[1738223111298,0.8009,3183.7,3182.9,0.7948]
[1738223111299,0.7582,3183.9,3183.4,1.54033496]
[1738223111499,0.7582,3183.9,3183.5,3.14118]
[1738223111800,0.7582,3183.9,3183.2,1.54033496]
[1738223111992,0.7582,3183.5,3183.1,3.0]
[1738223112175,3.8994,3183.5,3183.1,3.0]
[1738223114105,3.8994,3183.5,3183.0,5.32603496]
[1738223114471,3.8994,3183.5,3183.0,4.54033496]
[1738223120112,3.8994,3183.5,3183.0,7.68196496]
[1738223121008,3.8994,3183.5,3183.0,4.54033496]
[1738223121217,0.7582,3183.5,3183.0,1.54033496]
[1738223121514,0.7504,3183.1,3182.8,3.0]
[1738223122705,3.89204,3183.1,3182.5,3.14215]
[1738223123028,3.1417,3183.0,3182.4,5.50008496]
[1738223123386,3.1417,3183.0,3182.5,3.0]
[1738223123778,0.7504,3183.1,3182.5,3.14213]
[1738223124704,3.89201,3183.1,3182.5,3.14213]
[1738223125882,3.14176,3183.0,3182.4,4.54033496]
[1738223126114,0.7532,3182.9,3182.4,4.54033496]
[1738223126295,0.7532,3182.9,3182.4,7.68255496]
[1738223128329,0.7532,3182.9,3182.4,7.68257496]
[1738223129230,3.14194,3182.8,3182.4,3.0]
[1738223129413,3.93755,3182.7,3182.1,3.14249]
[1738223129917,3.93755,3182.7,3182.2,3.0]
[1738223130226,3.93755,3182.7,3182.2,6.14245]
[1738223130459,0.7955,3182.7,3182.2,6.14245]
[1738223130623,0.7955,3182.7,3182.2,3.0]
[1738223130827,0.7955,3182.7,3182.2,6.14246]
[1738223132323,0.7955,3182.7,3182.3,1.54033496]
[1738223132498,0.7955,3182.7,3182.3,4.68263496]
[1738223132703,0.7955,3182.7,3182.4,3.14226]
[1738223133916,3.14143,3183.3,3182.6,3.14202]
[1738223133917,0.7945,3182.9,3182.6,3.14202]
[1738223134117,0.819,3183.2,3182.7,4.68229496]
[1738223135233,3.96051,3183.2,3182.7,3.14196]
[1738223135747,0.819,3183.2,3182.7,3.14196]
[1738223136812,3.96051,3183.2,3182.7,3.14196]
[1738223137955,0.819,3183.2,3182.7,3.14196]
[1738223138114,3.9605,3183.2,3182.7,3.14196]
[1738223138310,0.819,3183.2,3182.6,0.7594]
[1738223138515,3.14168,3183.1,3182.5,4.68243496]
[1738223139315,6.28335,3183.1,3182.5,4.68243496]
[1738223139516,0.8291,3183.0,3182.3,2.31123496]
[1738223139848,0.8291,3183.0,3182.2,0.6159813]
[1738223139849,3.14194,3182.8,3182.2,3.14247]
[1738223140056,3.14194,3182.8,3182.3,3.0]
[1738223141850,3.14203,3182.7,3182.1,4.68289496]
[1738223142156,0.7682,3182.6,3182.2,3.0]
[1738223142518,0.7682,3182.6,3182.0,0.63058051]
[1738223142737,3.14231,3182.4,3182.0,0.63058051]
[1738223142918,0.7523,3182.3,3182.0,0.63058051]
[1738223144043,0.7523,3182.3,3181.9,7.68307496]
[1738223144651,0.7523,3182.3,3181.9,6.14274]
[1738223144859,0.7523,3182.3,3182.0,3.14266]
[1738223146441,0.8184,3182.6,3182.0,4.071204]
[1738223146644,0.8184,3182.6,3182.1,0.8168]
[1738223147320,0.8184,3182.6,3182.2,3.14245]
[1738223150235,3.14192,3182.8,3182.2,3.14245]
[1738223152470,0.8234,3182.9,3182.4,3.14227]
[1738223152652,0.8234,3182.9,3182.4,6.28448]
[1738223153022,0.8234,3182.9,3182.3,3.0]
[1738223153169,3.96526,3182.9,3182.3,3.0]
[1738223153463,3.96526,3182.9,3182.3,6.14236]
[1738223153761,3.96526,3182.9,3182.4,3.14227]
[1738223155661,0.8234,3182.9,3182.5,3.14215]
[1738223159185,3.91341,3183.1,3182.5,3.97315]
[1738223160278,3.1417,3183.0,3182.5,0.831]
[1738223160650,3.1417,3183.0,3182.5,3.97317]
[1738223161161,3.14115,3183.6,3182.5,3.97317]
[1738223161162,0.7797,3183.3,3182.8,3.14182]
[1738223161360,0.7797,3183.3,3182.9,3.90181]
[1738223162868,0.8329,3183.6,3182.9,3.90181]
[1738223163062,0.8329,3183.6,3183.1,3.14157]
[1738223163257,0.8202,3183.7,3183.2,3.755637]
[1738223163583,0.8202,3183.7,3183.2,6.897027]
[1738223163788,0.8202,3183.7,3183.3,3.14133]
[1738223164285,0.8202,3183.7,3183.2,3.755547]
[1738223164676,0.8202,3183.7,3183.2,5.29527524]
[1738223165087,3.14075,3184.0,3183.4,4.68099824]
[1738223165286,0.7997,3184.0,3183.6,4.68078824]
[1738223165510,0.7887,3184.6,3183.6,4.68078824]
[1738223165654,3.14039,3184.4,3183.8,4.68059824]
[1738223165860,3.14039,3184.4,3184.0,1.53972824]
[1738223166376,3.92888,3184.6,3184.0,1.53972824]
[1738223166688,3.14024,3184.5,3183.9,3.94973]
[1738223167204,3.92888,3184.6,3183.9,0.809]
[1738223167405,3.14032,3184.4,3183.9,0.809]
[1738223167592,3.14032,3184.4,3184.0,0.47320458]
[1738223168673,3.14047,3184.3,3184.0,0.47320458]
[1738223168852,3.14047,3184.3,3183.7,3.0]
[1738223169258,3.14047,3184.3,3183.7,6.14092]
[1738223170710,3.14047,3184.3,3183.8,3.14088]
[1738223172216,3.14047,3184.3,3183.7,3.0]
[1738223172513,3.14047,3184.3,3183.3,3.5306818]
[1738223172514,3.1406,3184.1,3183.3,0.8024]
[1738223172716,3.14106,3183.7,3183.1,6.1424]
[1738223173013,3.9577,3183.6,3183.1,1.265782]
[1738223173726,3.14129,3183.4,3182.9,0.8024]
[1738223174209,3.14129,3183.4,3182.8,3.6284522]
[1738223174426,0.7631,3183.1,3182.6,3.14206]
[1738223175215,0.7631,3183.1,3182.7,6.14198]
[1738223176876,0.7631,3183.1,3182.7,3.0]
[1738223180111,0.7631,3183.1,3182.7,6.833566]
[1738223181011,0.7631,3183.1,3182.7,0.691616]
[1738223181213,0.7631,3183.1,3182.5,6.9162]
[1738223181409,3.90469,3183.1,3182.5,6.9162]
[1738223182223,0.8124,3183.4,3182.9,3.14177]
[1738223184592,0.8124,3183.4,3183.0,3.14166]
[1738223187019,0.787,3183.7,3183.3,3.14139]
[1738223187544,0.787,3183.7,3183.2,3.14147]
[1738223188901,0.787,3183.7,3183.3,3.14133]
[1738223189236,0.787,3183.9,3183.3,6.28266]
[1738223189602,0.787,3183.9,3183.3,3.14133]
[1738223189803,0.787,3183.9,3183.4,3.14129]
[1738223190026,0.787,3183.9,3183.5,0.314129]
[1738223190703,0.787,3183.9,3183.5,3.455319]
[1738223191532,0.787,3183.9,3183.5,0.314129]
[1738223191733,0.787,3183.9,3183.2,3.14145]
[1738223191734,3.1409,3183.8,3183.2,3.14145]
[1738223191942,3.1409,3183.8,3183.3,3.0]
[1738223193936,3.1409,3183.8,3183.2,3.14142]
[1738223194845,3.94172,3183.6,3183.1,3.0]
[1738223195342,3.94172,3183.6,3183.1,6.14158]
[1738223196814,3.14112,3183.6,3182.9,3.0]
[1738223197048,6.14155428,3184.4,3182.7,6.14304428]
[1738223197049,0.7738,3183.2,3182.7,3.14189]
[1738223197342,3.91538,3183.2,3182.8,0.314189]
[1738223197554,3.91538,3183.2,3182.6,3.14205]
[1738223197714,3.91538,3183.2,3182.7,3.0]
[1738223198647,3.91538,3183.2,3182.6,3.0]
[1738223198838,3.91538,3183.2,3182.7,3.14198]
[1738223199151,3.91538,3183.2,3182.7,4.070394]
[1738223199850,0.7738,3183.2,3182.7,4.070394]
[1738223200151,0.7738,3183.2,3182.7,7.212304]
[1738223201151,0.7738,3183.2,3182.7,4.070324]
[1738223201666,0.7797,3183.5,3183.0,3.14161]
[1738223201952,0.7797,3183.5,3183.1,3.14156]
[1738223202640,0.7797,3183.5,3183.0,0.314161]
[1738223203743,0.7797,3183.5,3183.0,3.314161]
[1738223204319,0.7797,3183.5,3183.0,3.455841]
[1738223204721,0.7797,3183.5,3183.0,3.455781]
[1738223204944,0.7797,3183.5,3183.1,3.4870981]
[1738223206523,0.7797,3183.5,3183.2,3.14145]
[1738223206725,3.90655,3183.9,3183.2,3.14139]
[1738223207058,3.90655,3183.9,3183.3,3.14136]
[1738223209156,0.7657,3183.9,3183.1,4.1108781]
[1738223209370,3.14096,3183.8,3183.1,7.2523881]
[1738223209526,3.14096,3183.8,3183.2,4.51241434]
[1738223210134,3.91466,3183.7,3183.1,3.3455781]
[1738223210334,3.91466,3183.7,3183.1,6.4871181]
[1738223210555,0.7736,3183.7,3183.2,6.28283]
[1738223210738,0.7736,3183.7,3183.3,3.14135]
[1738223215067,0.7736,3183.7,3183.1,6.4871281]
[1738223215068,3.91466,3183.7,3183.1,6.4871281]
[1738223216368,3.14111,3183.6,3183.1,6.14155]
[1738223216748,9.06222076,3184.5,3183.0,3.0]
[1738223216749,3.95206,3183.5,3183.0,3.0]
[1738223216946,3.95206,3183.5,3182.7,3.14194]
[1738223216947,0.8108,3183.4,3182.7,3.14194]
[1738223217133,3.14145,3183.3,3182.7,3.14192]
[1738223217331,3.14145,3183.3,3182.8,0.337392]
[1738223217559,3.14149,3183.2,3182.8,0.337392]
[1738223217866,0.8108,3183.1,3182.8,0.337392]
[1738223218238,0.8108,3183.1,3182.7,3.14197]
[1738223218885,0.8108,3183.1,3182.8,3.0]
[1738223219266,0.8108,3183.1,3182.8,3.14186]
[1738223219585,0.8108,3183.1,3182.8,3.14188]
[1738223223803,0.8077,3183.4,3182.9,3.0]
[1738223224004,0.8077,3183.4,3183.0,3.755788]
[1738223224768,0.8077,3183.4,3183.1,3.14153]
[1738223226399,0.8272,3183.8,3183.4,6.28244]
[1738223227378,0.8272,3183.8,3183.4,3.14122]
[1738223228565,3.93965,3184.1,3183.6,3.14108]
[1738223228766,3.93965,3184.1,3183.6,4.06931]
[1738223230087,0.799,3184.1,3183.7,3.14098]
[1738223230488,3.95853,3184.3,3183.7,3.14098]
[1738223230667,3.95853,3184.3,3183.8,3.14089]
[1738223231268,3.95853,3184.3,3183.7,3.0]
[1738223231624,3.95853,3184.3,3183.4,3.0]
[1738223231625,3.14072,3184.0,3183.4,3.14126]
[1738223231769,3.14088,3183.9,3183.3,0.232]
[1738223231969,0.8108,3183.8,3183.3,3.0]
[1738223232189,3.95179,3183.8,3183.3,3.0]
[1738223232805,0.8108,3183.8,3183.3,6.14137]
[1738223232981,0.8108,3183.8,3183.3,7.069647]
[1738223233502,3.95173,3183.8,3183.3,3.928277]
[1738223233899,3.95173,3183.8,3183.3,7.069647]
[1738223235193,3.95173,3183.8,3183.3,6.14137]
[1738223235508,0.8108,3183.8,3183.3,6.14137]
[1738223236625,0.8108,3183.8,3183.4,3.14121]
[1738223236808,0.8108,3183.8,3183.5,3.14113]
[1738223237005,0.8187,3184.0,3183.5,3.14113]
[1738223237316,0.8187,3184.0,3183.5,4.82797943]
[1738223237624,0.8187,3184.0,3183.6,3.14103]
[1738223238027,0.8187,3184.0,3183.5,4.82797943]
[1738223238195,3.92331,3184.3,3183.7,3.14091]
[1738223238619,0.7829,3184.3,3183.8,3.14084]
[1738223238828,0.7829,3184.3,3183.8,3.769015]
[1738223239694,0.7829,3184.3,3183.8,0.628175]
[1738223239900,0.7829,3184.3,3183.9,3.14077]
[1738223240219,0.7829,3184.3,3184.0,3.14068]
[1738223241128,0.7829,3184.3,3183.9,3.14077]
[1738223241328,0.7829,3184.3,3184.0,3.14069]
[1738223242724,3.96902,3184.6,3184.0,3.92999]
[1738223242926,0.8289,3184.6,3184.4,3.0]
[1738223243623,3.13993,3184.8,3184.4,3.0]
[1738223243624,3.96093,3184.8,3184.4,3.0]
[1738223244236,0.821,3184.8,3184.4,3.0]
[1738223244955,3.13976,3185.0,3184.4,3.0]
[1738223245161,3.89906,3185.0,3184.4,3.79]
[1738223245824,0.7593,3185.0,3184.5,3.14014]
[1738223246057,0.7593,3185.0,3184.6,3.14004]
[1738223247154,0.7553,3185.2,3184.7,3.13992]
[1738223247860,0.7553,3185.2,3184.8,3.13984]
[1738223249058,3.96246,3185.4,3184.8,3.13984]
[1738223249383,3.96246,3185.4,3184.9,0.7709]
[1738223249656,3.13948,3185.3,3184.6,3.91094]
[1738223250033,3.13948,3185.3,3184.7,3.14]
[1738223252255,0.8231,3185.4,3184.7,3.0]
[1738223252557,0.8231,3185.4,3184.6,3.91094]
[1738223252558,0.8231,3185.4,3184.9,3.13977]
[1738223252725,0.8231,3185.4,3184.9,3.453747]
[1738223252924,0.8231,3185.4,3185.0,3.1397]
[1738223253125,3.13922,3185.5,3185.1,0.765]
[1738223253324,3.89645,3185.7,3185.1,3.76615428]
[1738223253527,3.13918,3185.6,3185.1,0.765]
[1738223254054,3.13922,3185.5,3185.0,3.1397]
[1738223255935,3.13922,3185.5,3184.9,1.096777]
[1738223256131,3.13922,3185.5,3184.9,7.236577]
[1738223257160,3.13922,3185.5,3184.9,6.453777]
[1738223257823,3.13922,3185.5,3185.0,0.9593597]
[1738223258528,3.13922,3185.5,3185.0,4.0990597]
[1738223261865,3.89644,3185.7,3185.1,3.13959]
[1738223262233,7.03555,3185.7,3185.0,4.0990597]
[1738223262434,3.89644,3185.7,3185.0,7.2387097]
[1738223262635,3.89644,3185.7,3185.1,3.13959]
[1738223263463,3.89644,3185.7,3185.0,4.0990097]
[1738223263633,3.89644,3185.7,3185.1,3.13961]
[1738223265144,3.13945,3185.3,3184.7,3.90285]
[1738223265460,0.822,3185.2,3184.8,3.0]
[1738223266135,0.822,3185.2,3184.8,6.13989]
[1738223266778,0.822,3185.2,3184.8,3.0]
[1738223267087,0.776,3185.4,3185.1,3.13961]
[1738223267267,0.776,3185.4,3185.2,0.613961]
[1738223267470,0.776,3185.4,3185.1,3.13961]
[1738223270277,0.776,3185.4,3184.8,3.0]
[1738223270278,3.91532,3185.4,3184.8,3.0]
[1738223270572,3.13952,3185.2,3184.8,3.0]
[1738223271339,0.7973,3185.3,3184.8,6.13991]
[1738223271543,0.7973,3185.3,3185.0,3.0]
[1738223271762,0.7973,3185.3,3184.9,6.1398]
[1738223272078,0.7973,3185.3,3184.9,7.44310979]
[1738223273486,0.7973,3185.3,3185.0,3.13965]
[1738223277084,0.7973,3185.3,3184.9,3.0]
[1738223277290,3.13965,3185.1,3184.7,0.62563009]
[1738223277589,0.802,3184.7,3184.1,0.6185949]
[1738223277792,0.802,3184.7,3184.3,3.14033]
[1738223277987,0.802,3184.7,3184.4,3.0]
[1738223278297,0.802,3184.7,3184.4,6.14028]
[1738223278487,0.802,3185.1,3184.4,0.7744]
[1738223278789,0.802,3185.1,3184.8,3.1399]
[1738223278952,0.802,3185.1,3184.7,3.13999]
[1738223280822,0.802,3185.1,3184.7,3.768006]
[1738223280976,0.802,3185.1,3184.7,3.13999]
[1738223283566,0.802,3185.1,3184.6,3.0]
[1738223284581,0.802,3185.1,3184.7,3.14]
[1738223285771,0.802,3185.1,3184.8,3.13988]
[1738223286921,0.802,3185.1,3184.6,6.94772]
[1738223287087,0.802,3185.1,3184.6,4.816488]
[1738223287829,0.802,3185.1,3184.7,3.13994]
[1738223288976,0.802,3185.1,3184.8,3.1399]
[1738223290102,0.802,3185.1,3184.9,3.13977]
[1738223290776,3.97235,3185.5,3184.9,3.13977]
[1738223290977,3.97235,3185.5,3185.0,3.13967]
[1738223292310,3.97235,3185.5,3184.9,3.13977]
[1738223293277,3.97235,3185.5,3184.9,3.767776]
[1738223293985,3.13934,3185.4,3184.9,3.767776]
[1738223294399,3.97235,3185.5,3184.9,3.1398]
[1738223296186,3.97235,3185.5,3184.9,6.27954]
[1738223297057,3.97235,3185.5,3184.9,3.13974]
[1738223297514,3.97235,3185.5,3184.8,3.0]
[1738223297689,3.13939,3185.4,3184.8,6.1399]
[1738223297894,3.13939,3185.4,3184.9,3.13981]
[1738223301220,0.61658484,3185.8,3184.8,3.0]
[1738223301420,0.61658484,3185.8,3183.7,8.8175]
[1738223301421,3.13982,3184.9,3184.1,12.30508184]
[1738223301622,0.8177,3184.5,3184.0,3.37168]
[1738223302122,0.8177,3184.5,3184.1,6.14059]
[1738223302290,0.8177,3184.5,3184.2,0.637159]
[1738223303514,0.8177,3184.5,3184.2,6.777649]
[1738223304723,0.8177,3184.5,3184.2,0.637159]
[1738223304943,0.8177,3184.5,3184.1,3.1406]
[1738223311720,3.95792,3184.5,3184.0,3.231]
[1738223312035,3.95792,3184.5,3184.0,3.0]
[1738223312741,3.95792,3184.5,3184.0,6.14067]
[1738223314540,3.95792,3184.5,3184.0,7.67964915]
[1738223315940,0.8177,3184.5,3184.0,7.67964915]
[1738223317337,3.95791,3184.5,3184.0,7.67964915]
[1738223318138,3.95791,3184.5,3184.0,1.53897915]
[1738223318545,3.14039,3184.4,3184.0,1.53897915]
[1738223318721,3.95791,3184.5,3184.0,1.53897915]
[1738223323244,3.95791,3184.5,3184.0,4.53897915]
[1738223325265,7.09819,3184.5,3184.0,4.53897915]
[1738223325492,0.8177,3184.5,3183.6,1.53897915]
[1738223325696,3.14087,3183.9,3183.4,1.53897915]
[1738223325835,3.96146,3183.8,3183.4,1.53897915]
[1738223326135,3.96146,3183.8,3183.3,3.0]
[1738223328236,3.96146,3183.8,3183.3,6.14136]
[1738223329703,3.96146,3183.8,3183.3,6.14137]
[1738223329860,3.96146,3183.8,3183.3,3.0]
[1738223330361,3.96146,3183.8,3183.3,6.14136]
[1738223330894,0.8205,3183.8,3183.3,6.14136]
[1738223331570,0.8205,3183.8,3183.3,3.0]
[1738223331772,0.8205,3183.8,3183.4,3.14128]
[1738223332289,1.53897915,3184.3,3183.4,3.14128]
[1738223332290,0.8326,3184.2,3183.5,3.0]
[1738223332453,0.8326,3184.2,3183.7,3.14094]
[1738223334383,0.8326,3184.2,3183.8,3.14089]
[1738223334587,3.96505,3184.5,3183.9,6.14074]
[1738223335181,3.96505,3184.5,3184.0,3.14064]
[1738223335182,0.8248,3184.5,3184.0,3.14064]
[1738223335504,0.8248,3184.5,3184.0,4.22269091]
[1738223335794,3.96505,3184.5,3184.0,3.14064]
[1738223336487,0.7972,3184.3,3183.8,3.0]
[1738223336681,0.7972,3184.3,3183.8,6.14088]
[1738223338588,3.14013,3184.6,3183.9,3.14079]
[1738223338793,0.8233,3184.5,3184.0,3.14067]
[1738223339659,0.8233,3184.5,3184.0,3.92271392]
[1738223339862,0.8233,3184.5,3184.0,0.78204392]
[1738223340092,0.8233,3184.5,3184.1,3.14051]
[1738223340573,3.96357,3184.5,3184.0,3.0]
[1738223342496,3.14032,3184.4,3184.0,3.0]
[1738223346907,3.14032,3184.4,3183.9,3.0]
[1738223347310,0.7932,3184.1,3183.5,3.37217]
[1738223348212,3.14072,3184.0,3183.6,3.0]
[1738223351114,3.14072,3184.0,3183.5,3.37217]
[1738223351574,3.9263,3183.9,3183.5,0.231]
[1738223351779,0.7855,3183.9,3183.5,0.231]
[1738223353333,0.7855,3183.9,3183.5,3.37219]
[1738223354262,0.7855,3183.9,3183.5,0.231]
[1738223358923,3.92632,3183.9,3183.5,0.231]
[1738223362229,3.14091,3183.8,3183.5,0.231]
[1738223362608,0.823,3183.7,3183.5,0.231]
[1738223362843,0.823,3183.7,3183.3,3.0]
[1738223363018,0.823,3183.7,3183.3,6.14139]
[1738223363219,3.96401,3183.7,3183.3,3.0]
[1738223363451,0.823,3183.7,3183.3,3.0]
[1738223363925,0.823,3183.7,3183.4,0.29394651]
[1738223368647,3.14112,3183.6,3183.4,0.29394651]
[1738223368841,3.96407,3183.7,3183.4,0.29394651]
[1738223371550,3.14111,3183.6,3183.4,0.29394651]
[1738223372354,0.823,3183.7,3183.4,0.29394651]
[1738223374756,0.823,3183.7,3183.5,0.29394651]
[1738223375523,0.823,3183.7,3182.9,0.231]
[1738223375524,0.55,3183.6,3182.8,3.14182]
[1738223375744,3.14136,3183.4,3182.8,3.14182]
[1738223375918,3.14145,3183.3,3182.8,3.14182]
[1738223376124,3.1415,3183.2,3182.7,1.4494664]
[1738223376536,3.1415,3183.2,3182.8,0.2942054]
[1738223376952,0.8249,3183.1,3182.8,0.2942054]
[1738223377526,0.8249,3183.1,3182.9,0.2942054]
[1738223378357,0.8249,3183.1,3183.0,0.2942054]
[1738223378744,0.55,3183.6,3183.0,0.2942054]
[1738223378745,0.75,3183.5,3183.0,0.2942054]
[1738223379562,0.75,3183.5,3183.1,0.2942054]
[1738223380964,0.75,3183.5,3183.2,0.2942054]
[1738223382258,0.75,3183.5,3183.3,0.2942054]
[1738223382637,1.3519,3183.8,3183.3,0.2942054]
[1738223383044,4.49288,3183.8,3183.4,0.2942054]
[1738223383927,3.14109,3183.6,3183.4,0.2942054]
[1738223384140,3.14109,3183.6,3183.5,0.2942054]
[1738223392581,3.14098,3183.8,3183.5,0.2942054]
[1738223393867,3.14099,3183.7,3183.6,0.2942054]
[1738223394047,3.14098,3183.8,3183.6,0.2942054]
[1738223394578,3.14098,3183.8,3183.7,0.2942054]
[1738223401032,3.14074,3184.0,3183.7,0.2942054]
[1738223402796,3.14074,3184.0,3183.8,0.2942054]
[1738223404201,3.14074,3184.0,3183.9,0.2942054]
[1738223406883,3.93224,3184.0,3183.9,0.2942054]
[1738223412220,3.63866848,3185.0,3183.9,0.2942054]
[1738223412221,3.14036,3184.4,3183.9,0.2942054]
[1738223412381,3.14036,3184.4,3184.0,0.57586077]
[1738223412994,3.14015,3184.6,3184.1,0.7551]
[1738223413418,3.14023,3184.5,3184.2,0.2942054]